fUST/lending_fUST_20240403
["ID","MTS","AMOUNT","RATE_DAILY","PERIOD"]
[321389495,1712113838950,-180.149138,0.00039626,2]
[321389497,1712113838959,-209.294606,0.00039626,2]
[321389499,1712113838969,-153.943635,0.00039626,2]
[321389501,1712113838978,-151.0,0.00039626,2]
[321389503,1712113838988,-157.83,0.00039696,35]
[321389505,1712113838998,-2786.0,0.00039696,35]
[321389507,1712113839007,-161.384544,0.00039696,2]
[321389509,1712113839017,-202.698592,0.00039696,2]
[321389511,1712113839026,-260.0,0.000397,35]
[321389513,1712113839036,-2786.0,0.00039706,35]
[321389515,1712113839045,-150.5,0.0003971,35]
[321389518,1712113839055,-260.0,0.0003971,35]
[321389520,1712113839064,-892.17427071,0.00039715,4]
[321389521,1712113839074,-360.07903834,0.00039715,4]
[321389523,1712113839083,-3990.51233138,0.00039715,2]
[321389526,1712113839093,-156.33283191,0.00039715,4]
[321389528,1712113839103,-422.64630741,0.00039715,4]
[321389530,1712113839112,-992.64388479,0.00039715,4]
[321389532,1712113839122,-2248.1300057,0.00039715,4]
[321389534,1712113839132,-193.74433627,0.00039715,4]
[321389536,1712113839141,-1840.87995698,0.00039715,4]
[321389538,1712113839150,-186.555102,0.00039715,2]
[321389540,1712113839160,-346.77814437,0.00039716,4]
[321389542,1712113839170,-2786.0,0.00039716,35]
[321389544,1712113839179,-150.93955783,0.00039716,2]
[321389545,1712113839189,-4964.9135247,0.00039717,3]
[321390782,1712114691395,2454.464805,0.00030583,120]
[321391134,1712115038346,-150.0,0.00028483,2]
[321391137,1712115038356,-2845.31390782,0.00030581,4]
[321391140,1712115038365,-4917.06204123,0.00030582,4]
[321391143,1712115038374,-3370.27218874,0.00030583,4]
[321391146,1712115038384,-166.224072,0.00030583,2]
[321391149,1712115038393,-595.1551022,0.00035,2]
[321391152,1712115038402,-541.63339981,0.00035,4]
[321391154,1712115038411,-2454.464805,0.00035681,120]
[321391157,1712115038420,-150.0,0.000361,7]
[321391159,1712115038430,-2745.19479993,0.000379,2]
[321391162,1712115038440,-153.0,0.000381,2]
[321391164,1712115038449,-1072.48904778,0.000385,20]
[321392113,1712116232804,-2845.31390782,0.00034966,4]
[321392114,1712116232814,-4917.06204123,0.00034967,4]
[321392115,1712116232824,-972.33532237,0.00035,2]
[321392116,1712116232833,-451.36116651,0.00035,4]
[321392117,1712116232842,-595.1551022,0.00035609,2]
[321392118,1712116232851,-400.0,0.00035609,2]
[321392119,1712116232861,-1998.127765,0.00035611,120]
[321392120,1712116232870,-3458.3428,0.00035863,30]
[321392121,1712116232879,-7619.578,0.00037,20]
[321392122,1712116232888,-19266.5717,0.00037863,30]
[321392123,1712116232897,-10000.0,0.00038,25]
[321392124,1712116232906,-160.0,0.00038156,2]
[321392125,1712116232915,-153.0,0.00038904,2]
[321392126,1712116232925,-153.0,0.00038904,2]
[321392127,1712116232934,-153.0,0.00038904,2]
[321392128,1712116232943,-153.0,0.00038904,2]
[321392129,1712116232952,-153.0,0.00038904,2]
[321392130,1712116232962,-10000.0,0.00039,30]
[321392131,1712116232971,-4338.51736606,0.00039452,30]
[321392132,1712116232980,-300.0,0.000395,20]
[321392133,1712116232989,-884.0,0.000396,2]
[321392134,1712116232999,-3476.03,0.000396,120]
[321392135,1712116233008,-9514.4909779,0.00039609,2]
[321392136,1712116233018,-1500.0,0.0003961,2]
[321392137,1712116233027,-1245.77794269,0.00039626,2]
[321392138,1712116233037,-1950.0,0.000397,35]
[321392139,1712116233046,-208.0,0.000397,35]
[321392140,1712116233056,-2000.0,0.000397,35]
[321392141,1712116233065,-154.96297752,0.00039708,4]
[321392142,1712116233075,-1950.0,0.0003971,35]
[321392143,1712116233084,-208.0,0.0003971,35]
[321392144,1712116233094,-299.91946051,0.00039716,2]
[321392145,1712116233104,-24688.19187437,0.00039717,3]
[321392238,1712116238419,-407.05894559,0.00039717,3]
[321392674,1712116243652,-122.79346622,0.00039717,3]
[321392682,1712116246548,-50684.88003393,0.00039717,3]
[321392728,1712116917495,600176.71275508,0.00039511,30]
[321392737,1712117293707,9330.0,0.000312,61]
[321392748,1712117370116,-716.67241162,0.000312,4]
[321392749,1712117370137,-211.46759874,0.000312,4]
[321392789,1712117432828,-2845.31390782,0.00031199,4]
[321392790,1712117432838,-466.53609218,0.000312,4]
[321392869,1712117438912,-333.4916296,0.000312,4]
[321392871,1712117438922,-190.44750502,0.000312,4]
[321392873,1712117438932,-520.92732189,0.000312,4]
[321392875,1712117438942,-3.17527429,0.00034025,120]
[321392989,1712117440890,-1495.42054871,0.00034025,120]
[321392990,1712117440900,-400.0,0.00034997,2]
[321392991,1712117440910,-629.98549488,0.00034998,4]
[321392992,1712117440919,-4358.87906564,0.00034998,4]
[321392993,1712117440928,-2167.62445783,0.00034998,4]
[321392994,1712117440938,-1909.32712488,0.00034999,4]
[321392995,1712117440948,-40046.79836737,0.00035,2]
[321392996,1712117440958,-451.36116651,0.00035,4]
[321392997,1712117440967,-389.21726093,0.00035,2]
[321392998,1712117440977,-667.41417189,0.00035,4]
[321392999,1712117440986,-737.22515798,0.000351,2]
[321393000,1712117440995,-319.06747655,0.00039,30]
[321393001,1712117441004,-153.0,0.00039,2]
[321393002,1712117441013,-389.0744216,0.00039,2]
[321393003,1712117441022,-307.0797791,0.00039,2]
[321393004,1712117441031,-153.07186994,0.00039375,7]
[321393005,1712117441042,-300.0,0.000395,20]
[321393006,1712117441052,-172.16303108,0.00039539,7]
[321393007,1712117441060,-1500.0,0.00039626,2]
[321393008,1712117441070,-153.07186994,0.00039637,7]
[321393009,1712117441079,-477.2662935,0.00039696,120]
[321393023,1712117443760,-1021.3295295,0.00039696,120]
[321393024,1712117443770,-932.61717497,0.00039696,35]
[321393038,1712118554133,-2845.31390782,0.00031185,4]
[321393039,1712118554154,-154.9690062,0.00031186,4]
[321393040,1712118554175,-400.0,0.00031186,2]
[321393041,1712118554198,-400.0,0.00031186,2]
[321393042,1712118554222,-2209.95258598,0.00031187,4]
[321393056,1712118631899,-4917.06204123,0.00031189,4]
[321393057,1712118631909,-304.0,0.00031189,3]
[321393058,1712118631920,-5315.89675683,0.0003119,4]
[321393059,1712118631929,-12180.17864255,0.00031198,4]
[321393060,1712118631939,-492.62011878,0.000312,4]
[321393061,1712118631949,-299.06828848,0.000312,4]
[321393062,1712118631959,-220.45205096,0.000312,4]
[321393063,1712118631969,-749.297911,0.00032732,120]
[321393064,1712118631979,-2845.31390782,0.00034998,4]
[321393065,1712118631989,-244.73874778,0.00034998,4]
[321393066,1712118631999,-463.84548298,0.00034999,4]
[321393067,1712118632008,-596.0873421,0.00034999,7]
[321393068,1712118632019,-155.75151319,0.00034999,7]
[321393069,1712118632029,-500.0,0.00034999,7]
[321393070,1712118632039,-518.8878935,0.00034999,7]
[321393071,1712118632049,-255.46600375,0.00034999,7]
[321393072,1712118632058,-37678.93721005,0.00035,2]
[321393118,1712118637829,-2367.86115732,0.00035,2]
[321393120,1712118637838,-315.95281655,0.00035,4]
[321393122,1712118637847,-1930.78189479,0.000375,15]
[321393124,1712118637856,-749.297911,0.00038188,120]
[321393126,1712118637865,-151.0,0.00038462,3]
[321393128,1712118637874,-319.06747655,0.00039,30]
[321393130,1712118637884,-153.07186994,0.00039197,7]
[321393132,1712118637893,-1500.0,0.00039626,2]
[321393134,1712118637903,-166.0,0.00039696,35]
[321393136,1712118637912,-56.29842303,0.000397,35]
[321393138,1712118637925,-280.86267126,0.000397,35]
[321393215,1712118642246,-357.50107535,0.00034999,7]
[321393217,1712118642256,-1129.83890571,0.000397,35]
[321393219,1712118642267,-166.0,0.00039706,35]
[321393221,1712118642277,-569.88832871,0.0003971,35]
[321393304,1712118642935,-371.54,0.0003971,35]
[321393376,1712119591109,-921.20944018,0.00034999,4]
[321393386,1712119832051,-1924.10446764,0.00034999,4]
[321393387,1712119832061,-1218.41851055,0.00034999,20]
[321393388,1712119832070,-516.34664324,0.00034999,4]
[321393389,1712119832079,-216.0,0.00034999,3]
[321393390,1712119832089,-9385.93037857,0.00035,2]
[321393437,1712119838042,-4256.56041016,0.00035,2]
[321393439,1712119838055,-1042.39967598,0.00035,2]
[321393570,1712119843285,-24151.68487086,0.00035,2]
[321393572,1712119843294,-315.95281655,0.00035,4]
[321393574,1712119843303,-187.88657,0.00038161,2]
[321393576,1712119843313,-1039.5372462,0.00038188,2]
[321393578,1712119843324,-374.648955,0.0003819,120]
[321393580,1712119843334,-250.77446087,0.00038462,3]
[321393582,1712119843344,-3824.0,0.00039,5]
[321393584,1712119843353,-153.07186994,0.00039124,7]
[321393586,1712119843363,-166.42426338,0.00039373,7]
[321393588,1712119843372,-502.15945608,0.0003939,7]
[321393590,1712119843382,-300.0,0.000395,20]
[321393592,1712119843392,-166.42426338,0.00039535,7]
[321393594,1712119843401,-1500.0,0.00039626,2]
[321393596,1712119843411,-166.42426338,0.00039648,7]
[321393598,1712119843420,-1226.0,0.000397,35]
[321393600,1712119843430,-150.5,0.000397,35]
[321393601,1712119843439,-1226.0,0.0003971,35]
[321393602,1712119843448,-150.5,0.0003971,35]
[321393603,1712119843458,-5710.35199692,0.00039717,3]
[321393604,1712119843467,-905.6914658,0.00039717,5]
[321393606,1712119843476,-150.5,0.0003972,35]
[321393607,1712119843485,-1226.0,0.0003972,35]
[321393609,1712119843495,-150.5,0.0003972,35]
[321393610,1712119843504,-436.66624007,0.00039723,15]
[321393611,1712119843513,-153.21474658,0.00039723,15]
[321393613,1712119843522,-256.56534513,0.00039724,2]
[321393615,1712119843531,-213.36966749,0.00039724,4]
[321393617,1712119843540,-3221.05433068,0.00039724,4]
[321393619,1712119843550,-391.17082186,0.00039724,30]
[321393620,1712119843559,-2600.58883732,0.00039724,4]
[321393622,1712119843569,-4304.37355858,0.00039724,4]
[321393624,1712119843587,-38.38862582,0.00039724,4]
[321393625,1712119843596,-157.37695831,0.00039724,4]
[321393626,1712119843606,-308.62550028,0.00039724,4]
[321393627,1712119843615,-155.07443573,0.00039724,4]
[321393628,1712119843625,-155.34751548,0.00039724,4]
[321393629,1712119843634,-155.07443573,0.00039724,4]
[321393630,1712119843643,-155.08063598,0.00039724,4]
[321393631,1712119843653,-155.01246052,0.00039724,4]
[321393632,1712119843664,-166.58879523,0.00039724,4]
[321393633,1712119843673,-155.13030946,0.00039724,4]
[321393634,1712119843682,-188.00309929,0.00039724,4]
[321393635,1712119843693,-240.13703496,0.00039724,4]
[321393636,1712119843702,-1202.7478217,0.00039724,4]
[321393637,1712119843711,-161.08119418,0.00039725,30]
[321393638,1712119843721,-893.91,0.00039725,2]
[321393639,1712119843730,-893.91,0.00039725,2]
[321393640,1712119843739,-893.91,0.00039725,2]
[321393641,1712119843749,-893.91,0.00039725,2]
[321393642,1712119843758,-893.91,0.00039725,2]
[321393643,1712119843769,-893.91,0.00039725,2]
[321393644,1712119843778,-893.91,0.00039725,2]
[321393645,1712119843788,-893.91,0.00039725,2]
[321393646,1712119843797,-893.91,0.00039725,2]
[321393647,1712119843806,-893.91,0.00039725,2]
[321393648,1712119843817,-8865.95117734,0.00039726,3]
[321393667,1712119846611,-167.0,0.00035,2]
[321393675,1712119848056,1218.41851055,0.00034999,20]
[321393676,1712119851687,323.62296974,0.00034999,4]
[321393686,1712120045718,3729.86306645,0.00027,3]
[321393785,1712121032265,-154.95351395,0.00034891,4]
[321393787,1712121032275,-154.95351395,0.00034892,3]
[321393789,1712121032285,-205.66350423,0.00034894,4]
[321393834,1712121038281,-2639.65040359,0.00034894,4]
[321393835,1712121038292,-1460.22593322,0.00034895,4]
[321393836,1712121038302,-187.92606643,0.00034897,2]
[321393837,1712121038312,-576.43392856,0.00034999,20]
[321393838,1712121038321,-2456.64614355,0.00035,2]
[321393839,1712121038331,-315.95281655,0.00035,4]
[321393840,1712121038341,-400.0,0.00035771,2]
[321393841,1712121038350,-4902.3600811,0.00035772,30]
[321393842,1712121038363,-515.4949189,0.00035772,30]
[321393843,1712121038372,-2532.2370366,0.00036172,2]
[321393844,1712121038386,-1382.4074874,0.00036172,2]
[321393845,1712121038394,-343.167087,0.00036278,120]
[321393846,1712121038405,-519.597686,0.00036627,2]
[321393847,1712121038415,-334.0,0.00036627,2]
[321393848,1712121038426,-1445.0205302,0.00036627,2]
[321393849,1712121038435,-3651.81244315,0.000375,15]
[321393850,1712121038448,-6348.18755685,0.000375,15]
[321393852,1712121038457,-498.1547591,0.00037525,2]
[321393853,1712121038467,-150.0,0.00037625,2]
[321393854,1712121038476,-654.85200837,0.00037643,2]
[321393855,1712121038485,-498.15475908,0.0003805,2]
[321393856,1712121038495,-33674.3915744,0.0003809,2]
[321393857,1712121038507,-11597.15212703,0.0003809,2]
[321393858,1712121038517,-400.0,0.00038324,3]
[321393859,1712121038526,-498.15475908,0.00038576,2]
[321393860,1712121038535,-498.15475908,0.00039101,2]
[321393861,1712121038544,-153.07186994,0.00039146,7]
[321393862,1712121038552,-154.94672797,0.00039388,7]
[321393863,1712121038561,-2729.51453924,0.00039412,2]
[321393864,1712121038570,-161.84033535,0.00039511,7]
[321393865,1712121038579,-1500.0,0.00039626,2]
[321393866,1712121038589,-498.15475908,0.00039626,2]
[321393867,1712121038600,-150.5,0.00039696,35]
[321393868,1712121038610,-1248.0,0.000397,35]
[321393869,1712121038619,-1665.78,0.00039703,6]
[321393870,1712121038629,-150.5,0.00039706,35]
[321393871,1712121038639,-274.09746149,0.0003971,35]
[321393872,1712121038653,-973.90253851,0.0003971,35]
[321393873,1712121038664,-150.5,0.00039716,35]
[321393874,1712121038673,-1248.0,0.0003972,35]
[321393875,1712121038682,-6114.30193658,0.00039724,4]
[321393876,1712121038691,-423.99206218,0.00039724,4]
[321393877,1712121038700,-1975.54503106,0.00039724,4]
[321393878,1712121038709,-259.9316284,0.00039724,4]
[321393879,1712121038718,-554.30344299,0.00039724,4]
[321393880,1712121038729,-171.99052288,0.00039724,4]
[321393881,1712121038741,-1918.43626366,0.00039724,4]
[321393882,1712121038752,-299.91946051,0.00039724,2]
[321393883,1712121038762,-1500.52497997,0.00039724,4]
[321393884,1712121038771,-154.96297752,0.00039724,4]
[321393885,1712121038781,-295.62283269,0.00039725,15]
[321393886,1712121038843,-500.0,0.00039725,15]
[321393887,1712121038862,-324.21672861,0.00039725,15]
[321393888,1712121038871,-361.10761112,0.00039725,15]
[321393889,1712121038881,-353.23574084,0.00039725,15]
[321393890,1712121038890,-24898.13287531,0.00039726,3]
[321394075,1712121484350,3508.81,0.00039409,30]
[321394116,1712122232458,-154.98450155,0.00029999,2]
[321394118,1712122232469,-4099.5,0.00029999,2]
[321394120,1712122232480,-1600.0,0.0003,2]
[321394122,1712122232489,-1000.0,0.00034,2]
[321394123,1712122232499,-57684.91718742,0.00034444,8]
[321394124,1712122232512,-1352.70207437,0.00034444,8]
[321394168,1712122238529,-403.72869949,0.00034444,8]
[321394170,1712122238540,-995.52624,0.00034444,8]
[321394188,1712122242867,-2669.11052581,0.00034444,8]
[321394190,1712122242879,-3179.9391,0.00034444,8]
[321394200,1712122242943,-2241.36847673,0.00034444,8]
[321394214,1712122243695,-21153.6,0.00034444,8]
[321394215,1712122243762,-3539.51887091,0.00034444,8]
[321394216,1712122243772,-315.95281655,0.00035,4]
[321394217,1712122243781,-259.798843,0.00035258,2]
[321394218,1712122243791,-257.375315,0.00036316,120]
[321394219,1712122243801,-208.80606836,0.00038355,4]
[321394220,1712122243810,-46065.84926739,0.00038356,120]
[321394221,1712122243824,-6275.08692021,0.00038356,120]
[321394222,1712122243833,-6733.57192278,0.00039409,120]
[321394223,1712122243849,-456.56140011,0.00039409,120]
[321394224,1712122243944,-416.75595341,0.00039409,120]
[321394225,1712122244154,-5401.76956669,0.00039409,120]
[321394226,1712122244164,-10000.0,0.00039409,15]
[321394227,1712122244174,-5000.0,0.0003941,30]
[321394228,1712122244185,-300.0,0.000395,20]
[321394229,1712122244195,-1500.0,0.00039626,2]
[321394230,1712122244209,-874.0,0.000397,35]
[321394231,1712122244220,-150.5,0.000397,35]
[321394232,1712122244231,-884.0,0.000397,2]
[321394233,1712122244243,-874.0,0.0003971,35]
[321394234,1712122244254,-150.5,0.0003971,35]
[321394235,1712122244265,-874.0,0.0003972,35]
[321394236,1712122244275,-150.5,0.0003972,35]
[321394237,1712122244286,-155.00620042,0.00039724,4]
[321394238,1712122244297,-2492.07401785,0.00039725,4]
[321394239,1712122244308,-1352.70207437,0.00039725,4]
[321394240,1712122244318,-19525.4772756,0.00039726,3]
[321394262,1712122246548,-154.98450155,0.00034443,4]
[321394263,1712122246558,-21895.58236768,0.00039726,3]
[321394281,1712123311245,-2851.1881851,0.00032708,2]
[321394282,1712123311271,-259.798843,0.00033257,2]
[321394283,1712123311297,-160.0,0.00033332,2]
[321394284,1712123311387,-2110.69798225,0.00033332,2]
[321394285,1712123311411,-32942.94707604,0.00033333,5]
[321394286,1712123311436,-166.67616375,0.000337,6]
[321394287,1712123311460,-235.02836297,0.000338,2]
[321394288,1712123311484,-16828.66338689,0.00034,4]
[321394297,1712123389272,-193.031486,0.00032708,120]
[321394298,1712123398881,-9207.0,0.00032707,4]
[321394307,1712123432675,-1670.99319192,0.00034,4]
[321394310,1712123432688,-1583.98821148,0.00034,4]
[321394315,1712123432732,-3574.27141783,0.00034,4]
[321394358,1712123438667,-396.009,0.00034,4]
[321394433,1712123443794,-0.04444532,0.00034,4]
[321395975,1712123482315,193.031486,0.00032707,30]
[321395976,1712123482340,6540.54043678,0.00032707,30]
[321395984,1712123651515,31424.27787074,0.00039398,60]
[321395988,1712123677439,150.0,2.75e-05,120]
[321395989,1712123701947,1799.568,0.00032757,4]
[321395991,1712123972539,1059.92304922,0.00032757,4]
[321396009,1712124632438,-999.76,0.00032697,4]
[321396010,1712124632447,-7848.0,0.00032698,4]
[321396011,1712124632456,-151.0,0.000327,2]
[321396012,1712124632466,-154.98450155,0.00032757,2]
[321396013,1712124632475,-2044.8576241,0.00033972,2]
[321396014,1712124632484,-400.0,0.00033999,2]
[321396015,1712124632494,-10363.09879838,0.00034,4]
[321396016,1712124632504,-708.649385,0.00034088,120]
[321396017,1712124632513,-259.798844,0.00034171,2]
[321396018,1712124632522,-2248.1300057,0.00034443,4]
[321396019,1712124632532,-972.33532237,0.00035,2]
[321396020,1712124632541,-315.95281655,0.00035753,4]
[321396021,1712124632551,-3458.3428,0.00035754,30]
[321396022,1712124632560,-5513.31002091,0.000377,2]
[321396023,1712124632570,-19266.5717,0.00037754,30]
[321396024,1712124632580,-992.64388479,0.00038354,4]
[321396025,1712124632590,-1007.0,0.00039,2]
[321396026,1712124632600,-154.94672797,0.00039062,7]
[321396027,1712124632609,-154.94672797,0.00039294,7]
[321396028,1712124632619,-5130.9119204,0.00039349,2]
[321396029,1712124632628,-6329.29012829,0.000394,4]
[321396030,1712124632637,-300.0,0.000395,20]
[321396031,1712124632647,-193.74433627,0.00039625,4]
[321396032,1712124632656,-362.30136053,0.00039625,4]
[321396033,1712124632666,-1500.0,0.00039626,2]
[321396034,1712124632675,-155.75151319,0.00039646,15]
[321396035,1712124632685,-417.26113947,0.00039646,15]
[321396036,1712124632695,-500.0,0.00039646,15]
[321396037,1712124632704,-5000.0,0.00039647,2]
[321396038,1712124632713,-208.80606836,0.00039688,4]
[321396039,1712124632723,-595.1551022,0.00039688,2]
[321396040,1712124632732,-463.84548298,0.00039688,4]
[321396041,1712124632742,-299.91946051,0.00039689,2]
[321396042,1712124632752,-5360.37644734,0.0003969,5]
[321396075,1712124637891,-213.22152545,0.00039646,15]
[321396077,1712124637901,-31891.07381592,0.0003969,5]
[321396242,1712125271590,-947.90232166,0.00034999,7]
[321396243,1712125271622,-947.90232166,0.00034999,7]
[321396244,1712125271647,-947.90232166,0.00034999,7]
[321396245,1712125271672,-947.90232166,0.00034999,7]
[321396246,1712125271697,-947.90232166,0.00034999,7]
[321396247,1712125271722,-947.90232166,0.00034999,7]
[321396248,1712125271746,-947.90232166,0.00034999,7]
[321396249,1712125271771,-947.90232166,0.00034999,7]
[321396250,1712125271795,-947.90232166,0.00034999,7]
[321396251,1712125271820,-947.90232166,0.00034999,7]
[321396252,1712125271847,-947.90232166,0.00034999,7]
[321396253,1712125271872,-947.90232166,0.00034999,7]
[321396254,1712125271896,-947.90232166,0.00034999,7]
[321396255,1712125271919,-947.90232166,0.00034999,7]
[321396256,1712125271942,-947.90232166,0.00034999,7]
[321396257,1712125271965,-947.90232166,0.00034999,7]
[321396258,1712125271989,-947.90232166,0.00034999,7]
[321396259,1712125272012,-947.90232166,0.00034999,7]
[321396260,1712125272036,-947.90232166,0.00034999,7]
[321396261,1712125272066,-947.90232166,0.00034999,7]
[321396262,1712125272089,-947.90232166,0.00034999,7]
[321396263,1712125272115,-947.90232166,0.00034999,7]
[321396264,1712125272138,-947.90232166,0.00034999,7]
[321396265,1712125272162,-947.90232166,0.00034999,7]
[321396266,1712125272185,-947.90232166,0.00034999,7]
[321396267,1712125272209,-947.90232166,0.00034999,7]
[321396268,1712125272232,-947.90232166,0.00034999,7]
[321396269,1712125272259,-947.90232166,0.00034999,7]
[321396270,1712125272283,-947.90232166,0.00034999,7]
[321396271,1712125272308,-947.90232166,0.00034999,7]
[321396272,1712125272333,-947.90232166,0.00034999,7]
[321396273,1712125272357,-947.90232166,0.00034999,7]
[321396274,1712125272379,-947.90232166,0.00034999,7]
[321396275,1712125272402,-947.90232166,0.00034999,7]
[321396276,1712125272424,-947.90232166,0.00034999,7]
[321396277,1712125272447,-947.90232166,0.00034999,7]
[321396278,1712125272470,-947.90232166,0.00034999,7]
[321396279,1712125272492,-947.90232166,0.00034999,7]
[321396280,1712125272581,-947.90232166,0.00034999,7]
[321396281,1712125272607,-947.90232166,0.00034999,7]
[321396282,1712125272631,-947.90232166,0.00034999,7]
[321396283,1712125272654,-945.84166443,0.00034999,7]
[321396284,1712125272677,-945.84166443,0.00034999,7]
[321396285,1712125272701,-945.84166443,0.00034999,7]
[321396286,1712125272725,-945.84166443,0.00034999,7]
[321396287,1712125272749,-945.84166443,0.00034999,7]
[321396288,1712125272773,-945.84166443,0.00034999,7]
[321396289,1712125272797,-945.84166443,0.00034999,7]
[321396290,1712125272821,-945.84166443,0.00034999,7]
[321396291,1712125272848,-945.84166443,0.00034999,7]
[321396292,1712125272871,-945.84166443,0.00034999,7]
[321396293,1712125272894,-945.84166443,0.00034999,7]
[321396294,1712125272918,-945.84166443,0.00034999,7]
[321396295,1712125272943,-945.84166443,0.00034999,7]
[321396296,1712125272967,-945.84166443,0.00034999,7]
[321396297,1712125272990,-945.84166443,0.00034999,7]
[321396298,1712125273013,-945.84166443,0.00034999,7]
[321396299,1712125273036,-945.84166443,0.00034999,7]
[321396300,1712125273061,-945.84166443,0.00034999,7]
[321396301,1712125273084,-945.84166443,0.00034999,7]
[321396302,1712125273110,-945.84166443,0.00034999,7]
[321396303,1712125273133,-945.84166443,0.00034999,7]
[321396304,1712125273157,-945.84166443,0.00034999,7]
[321396305,1712125273179,-945.84166443,0.00034999,7]
[321396306,1712125273202,-945.84166443,0.00034999,7]
[321396307,1712125273226,-945.84166443,0.00034999,7]
[321396308,1712125273249,-945.84166443,0.00034999,7]
[321396309,1712125273271,-945.84166443,0.00034999,7]
[321396310,1712125273296,-945.84166443,0.00034999,7]
[321396311,1712125273320,-945.84166443,0.00034999,7]
[321396312,1712125273344,-945.84166443,0.00034999,7]
[321396313,1712125273371,-945.84166443,0.00034999,7]
[321396314,1712125273395,-945.84166443,0.00034999,7]
[321396315,1712125273419,-945.84166443,0.00034999,7]
[321396316,1712125273444,-945.84166443,0.00034999,7]
[321396317,1712125283917,500.0,0.00034999,7]
[321396318,1712125283948,500.0,0.00034999,7]
[321396319,1712125283981,500.0,0.00034999,7]
[321396320,1712125284198,500.0,0.00034999,7]
[321396321,1712125284226,500.0,0.00034999,7]
[321396322,1712125284265,500.0,0.00034999,7]
[321396323,1712125284302,500.0,0.00034999,7]
[321396324,1712125284332,500.0,0.00034999,7]
[321396325,1712125284369,500.0,0.00034999,7]
[321396326,1712125284405,500.0,0.00034999,7]
[321396327,1712125284476,500.0,0.00034999,7]
[321396328,1712125284515,500.0,0.00034999,7]
[321396329,1712125284552,500.0,0.00034999,7]
[321396330,1712125284584,500.0,0.00034999,7]
[321396331,1712125284705,215.0899759,0.00034999,7]
[321396332,1712125284738,500.0,0.00034999,7]
[321396333,1712125284793,500.0,0.00034999,7]
[321396334,1712125284849,500.0,0.00034999,7]
[321396335,1712125284899,500.0,0.00034999,7]
[321396336,1712125284956,500.0,0.00034999,7]
[321396337,1712125285019,500.0,0.00034999,7]
[321396390,1712125832501,-501.8002263,0.00034998,4]
[321396543,1712125843954,-4672.42807722,0.00034997,4]
[321396544,1712125843963,-697.9117737,0.00034998,4]
[321396545,1712125843972,-500.0,0.00034999,7]
[321396546,1712125843981,-500.0,0.00034999,7]
[321396547,1712125843991,-618.67253696,0.00034999,7]
[321396548,1712125844000,-500.0,0.00034999,7]
[321396549,1712125844009,-500.0,0.00034999,7]
[321396550,1712125844080,-500.0,0.00034999,7]
[321396551,1712125844093,-178.39256497,0.00034999,7]
[321396605,1712126053220,-999.76,0.00034998,4]
[321396606,1712126053246,-321.60743503,0.00034999,7]
[321396607,1712126053271,-500.0,0.00034999,7]
[321396608,1712126053297,-500.0,0.00034999,7]
[321396609,1712126053321,-500.0,0.00034999,7]
[321396610,1712126053347,-28756.63256497,0.00035,2]
[321396611,1712126088201,-8922.30464508,0.00035,2]
[321396731,1712127038254,-4343.98944887,0.00034985,4]
[321396733,1712127038263,-999.76,0.00034986,4]
[321396735,1712127038273,-1000.0,0.00034999,4]
[321396737,1712127038282,-500.0,0.00035,2]
[321396739,1712127038291,-500.0,0.00035,2]
[321396740,1712127038300,-315.95281655,0.00036373,4]
[321396742,1712127038309,-531.487038,0.00036374,120]
[321396744,1712127038318,-500.0,0.00037,2]
[321396746,1712127038327,-500.0,0.000375,2]
[321396748,1712127038337,-500.0,0.00038,2]
[321396750,1712127038346,-432.08293996,0.00038252,2]
[321396753,1712127038356,-1500.0,0.00038256,2]
[321396754,1712127038366,-500.0,0.00038346,15]
[321396756,1712127038375,-500.0,0.00038346,15]
[321396758,1712127038384,-500.0,0.00038346,15]
[321396760,1712127038393,-500.0,0.00038346,15]